[Event "Schack-SM 2023: Veteran-SM 50+"]
[Site "Helsingborg Arena, Mellersta Stenbocksgatan 14, Helsingborg, Sweden"]
[Date "2023.07.09"]
[Round "9.3"]
[White "Ljung, Rickard"]
[Black "Nilsson, Patrik 1968"]
[Result "0-1"]
[TimeControl "90 minutes for 40 moves + 30 minutes for the rest of games + 30 seconds per move from move one."]
[WhiteElo "1939"]
[BlackElo "1931"]

1. d4 {[%clk 01:30:56]} {[%emt 00:00:03]} d6 {[%clk 01:30:48]} {[%emt
00:00:11]} 2. Nf3 {[%clk 01:29:11]} {[%emt 00:02:16]} Nf6 {[%clk 01:30:37]}
{[%emt 00:00:39]} 3. c4 {[%clk 01:24:13]} {[%emt 00:05:32]} g6 {[%clk
01:30:55]} {[%emt 00:00:11]} 4. Nc3 {[%clk 01:24:29]} {[%emt 00:00:14]} Bg7
{[%clk 01:31:15]} {[%emt 00:00:09]} 5. Bg5 {[%clk 01:24:47]} {[%emt 00:00:12]}
Nbd7 {[%clk 01:30:01]} {[%emt 00:01:44]} 6. e4 {[%clk 01:21:17]} {[%emt
00:04:00]} c6 {[%clk 01:25:50]} {[%emt 00:04:41]} 7. h3 {[%clk 01:20:35]}
{[%emt 00:01:12]} e5 {[%clk 01:23:44]} {[%emt 00:02:35]} 8. dxe5 {[%clk
01:20:15]} {[%emt 00:00:52]} dxe5 {[%clk 01:23:29]} {[%emt 00:00:43]} 9. Qc2
{[%clk 01:19:09]} {[%emt 00:01:37]} O-O {[%clk 01:22:33]} {[%emt 00:01:26]} 10.
Rd1 {[%clk 01:16:53]} {[%emt 00:02:46]} Qc7 {[%clk 01:22:13]} {[%emt 00:00:49]}
11. Be2 {[%clk 01:16:55]} {[%emt 00:00:30]} Re8 {[%clk 01:21:10]} {[%emt
00:01:31]} 12. O-O {[%clk 01:16:39]} {[%emt 00:00:48]} Nf8 {[%clk 01:18:27]}
{[%emt 00:03:12]} 13. b4 {[%clk 01:12:31]} {[%emt 00:04:39]} Ne6 {[%clk
01:15:53]} {[%emt 00:03:02]} 14. Be3 {[%clk 01:12:21]} {[%emt 00:00:42]} Bf8
{[%clk 01:06:43]} {[%emt 00:09:39]} 15. Rb1 {[%clk 01:08:26]} {[%emt 00:04:26]}
Nh5 {[%clk 00:54:38]} {[%emt 00:12:35]} 16. c5 {[%clk 01:03:24]} {[%emt
00:05:32]} Nhf4 {[%clk 00:53:18]} {[%emt 00:01:49]} 17. Bc4 {[%clk 01:02:30]}
{[%emt 00:01:25]} Bg7 {[%clk 00:49:13]} {[%emt 00:04:34]} 18. Rfd1 {[%clk
01:00:50]} {[%emt 00:02:11]} Rd8 {[%clk 00:45:18]} {[%emt 00:04:23]} 19. Rxd8+
{[%clk 00:54:29]} {[%emt 00:06:52]} Qxd8 {[%clk 00:44:31]} {[%emt 00:01:17]} 20.
Rd1 {[%clk 00:54:38]} {[%emt 00:00:21]} Qf6 {[%clk 00:37:57]} {[%emt 00:07:01]}
21. Ne2 {[%clk 00:52:53]} {[%emt 00:02:18]} Nxh3+ {[%clk 00:36:01]} {[%emt
00:02:27]} 22. Kf1 {[%clk 00:44:43]} {[%emt 00:08:39]} Nhf4 {[%clk 00:35:32]}
{[%emt 00:00:58]} 23. Rd6 {[%clk 00:43:56]} {[%emt 00:01:18]} h6 {[%clk
00:28:56]} {[%emt 00:07:05]} 24. Nxf4 {[%clk 00:26:43]} {[%emt 00:17:44]} exf4
{[%clk 00:28:50]} {[%emt 00:00:36]} 25. e5 {[%clk 00:26:50]} {[%emt 00:00:24]}
Qe7 {[%clk 00:23:16]} {[%emt 00:06:04]} 26. Bd2 {[%clk 00:19:31]} {[%emt
00:07:48]} g5 {[%clk 00:21:05]} {[%emt 00:02:40]} 27. Bc3 {[%clk 00:13:52]}
{[%emt 00:06:10]} Nf8 {[%clk 00:17:32]} {[%emt 00:04:03]} 28. Qd3 {[%clk
00:10:17]} {[%emt 00:04:04]} Be6 {[%clk 00:16:00]} {[%emt 00:02:03]} 29. Bxe6
{[%clk 00:05:50]} {[%emt 00:04:58]} fxe6 {[%clk 00:14:32]} {[%emt 00:01:57]} 30.
Nd2 {[%clk 00:06:04]} {[%emt 00:00:17]} Qf7 {[%clk 00:12:00]} {[%emt 00:03:01]}
31. Ne4 {[%clk 00:05:53]} {[%emt 00:00:41]} Re8 {[%clk 00:10:53]} {[%emt
00:01:36]} 32. f3 {[%clk 00:05:54]} {[%emt 00:00:30]} Re7 {[%clk 00:09:23]}
{[%emt 00:01:56]} 33. Rd8 {[%clk 00:04:47]} {[%emt 00:01:42]} Rd7 {[%clk
00:08:38]} {[%emt 00:01:15]} 34. Rxd7 {[%clk 00:04:32]} {[%emt 00:00:44]} Qxd7
{[%clk 00:08:12]} {[%emt 00:00:56]} 35. Nd6 {[%clk 00:04:56]} {[%emt 00:00:07]}
Qc7 {[%clk 00:04:21]} {[%emt 00:04:19]} 36. Kf2 {[%clk 00:05:04]} {[%emt
00:00:24]} a6 {[%clk 00:04:08]} {[%emt 00:00:42]} 37. a4 {[%clk 00:04:55]}
{[%emt 00:00:39]} Qe7 {[%clk 00:04:12]} {[%emt 00:00:24]} 38. Qe4 {[%clk
00:04:44]} {[%emt 00:00:44]} Bh8 {[%clk 00:02:18]} {[%emt 00:02:22]} 39. Bd4
{[%clk 00:04:10]} {[%emt 00:01:05]} Qg7 {[%clk 00:01:44]} {[%emt 00:01:01]} 40.
b5 {[%clk 00:03:48]} {[%emt 00:00:56]} axb5 {[%clk 00:01:40]} {[%emt 00:00:34]}
41. axb5 {[%clk 00:04:09]} {[%emt 00:00:09]} Qd7 {[%clk 00:26:20]} {[%emt
00:05:43]} 42. Nxb7 {[%clk 00:33:26]} {[%emt 00:01:20]} Qxb7 {[%clk 00:23:11]}
{[%emt 00:03:39]} 43. Qxc6 {[%clk 00:33:43]} {[%emt 00:00:12]} Qxc6 {[%clk
00:22:56]} {[%emt 00:00:46]} 44. bxc6 {[%clk 00:34:04]} {[%emt 00:00:09]} Ng6
{[%clk 00:23:12]} {[%emt 00:00:13]} 45. c7 {[%clk 00:33:04]} {[%emt 00:01:30]}
Ne7 {[%clk 00:23:33]} {[%emt 00:00:08]} 46. g3 {[%clk 00:33:25]} {[%emt
00:00:11]} Kf7 {[%clk 00:22:44]} {[%emt 00:01:19]} 47. c6 {[%clk 00:33:23]}
{[%emt 00:00:32]} Kg6 {[%clk 00:22:41]} {[%emt 00:00:32]} 48. g4 {[%clk
00:33:38]} {[%emt 00:00:15]} h5 {[%clk 00:22:07]} {[%emt 00:01:03]} 49. gxh5+
{[%clk 00:32:13]} {[%emt 00:01:56]} Kxh5 {[%clk 00:22:22]} {[%emt 00:00:15]} 50.
Ke2 {[%clk 00:32:37]} {[%emt 00:00:07]} g4 {[%clk 00:21:55]} {[%emt 00:00:57]}
51. fxg4+ {[%clk 00:33:01]} {[%emt 00:00:06]} Kxg4 {[%clk 00:22:10]} {[%emt
00:00:14]} 52. Kd3 {[%clk 00:33:20]} {[%emt 00:00:11]} Kf5 {[%clk 00:22:01]}
{[%emt 00:00:39]} 0-1

[Event "Schack-SM 2023: Veteran-SM 50+"]
[Site "Helsingborg Arena, Mellersta Stenbocksgatan 14, Helsingborg, Sweden"]
[Date "2023.07.09"]
[Round "9.4"]
[White "Eriksson, Bengt"]
[Black "Petersson, Kjell"]
[Result "1-0"]
[TimeControl "90 minutes for 40 moves + 30 minutes for the rest of games + 30 seconds per move from move one."]
[BlackTitle "CM"]
[WhiteElo "2016"]
[BlackElo "2061"]

1. d4 {[%clk 01:30:43]} {[%emt 00:00:16]} f5 {[%clk 01:30:58]} {[%emt
00:00:02]} 2. Nc3 {[%clk 01:30:30]} {[%emt 00:00:43]} Nf6 {[%clk 01:31:23]}
{[%emt 00:00:05]} 3. Bg5 {[%clk 01:30:39]} {[%emt 00:00:21]} d5 {[%clk
01:31:48]} {[%emt 00:00:05]} 4. Bxf6 {[%clk 01:30:52]} {[%emt 00:00:17]} exf6
{[%clk 01:32:10]} {[%emt 00:00:08]} 5. e3 {[%clk 01:30:35]} {[%emt 00:00:47]}
Be6 {[%clk 01:32:33]} {[%emt 00:00:08]} 6. Bd3 {[%clk 01:30:15]} {[%emt
00:00:50]} Nc6 {[%clk 01:32:43]} {[%emt 00:00:20]} 7. Nge2 {[%clk 01:25:42]}
{[%emt 00:05:02]} Qd7 {[%clk 01:32:24]} {[%emt 00:00:49]} 8. a3 {[%clk
01:25:11]} {[%emt 00:01:01]} Ne7 {[%clk 01:26:55]} {[%emt 00:05:59]} 9. b4
{[%clk 01:00:11]} {[%emt 00:25:30]} Nc8 {[%clk 01:24:55]} {[%emt 00:02:30]} 10.
O-O {[%clk 00:38:15]} {[%emt 00:22:26]} Nd6 {[%clk 00:58:27]} {[%emt 00:26:59]}
11. f3 {[%clk 00:38:18]} {[%emt 00:00:27]} O-O-O {[%clk 00:47:36]} {[%emt
00:11:21]} 12. b5 {[%clk 00:09:40]} {[%emt 00:29:08]} g5 {[%clk 00:42:16]}
{[%emt 00:05:49]} 13. Qb1 {[%clk 00:09:46]} {[%emt 00:00:24]} Nc4 {[%clk
00:36:48]} {[%emt 00:05:58]} 14. Bxc4 {[%clk 00:07:45]} {[%emt 00:02:32]} dxc4
{[%clk 00:37:17]} {[%emt 00:00:01]} 15. a4 {[%clk 00:06:05]} {[%emt 00:02:09]}
f4 {[%clk 00:15:21]} {[%emt 00:22:26]} 16. e4 {[%clk 00:05:28]} {[%emt
00:01:08]} g4 {[%clk 00:12:32]} {[%emt 00:03:19]} 17. a5 {[%clk 00:04:04]}
{[%emt 00:01:53]} gxf3 {[%clk 00:12:20]} {[%emt 00:00:42]} 18. Rxf3 {[%clk
00:01:29]} {[%emt 00:03:05]} Bd6 {[%clk 00:07:04]} {[%emt 00:05:46]} 19. Na4
{[%clk 00:01:13]} {[%emt 00:00:47]} Bg4 {[%clk 00:06:00]} {[%emt 00:01:34]} 20.
Rf2 {[%clk 00:00:50]} {[%emt 00:00:52]} Bxe2 {[%clk 00:05:32]} {[%emt
00:00:58]} 21. Rxe2 {[%clk 00:01:01]} {[%emt 00:00:20]} f3 {[%clk 00:04:07]}
{[%emt 00:01:54]} 22. gxf3 {[%clk 00:01:28]} {[%emt 00:00:03]} Rhg8+ {[%clk
00:04:14]} {[%emt 00:00:24]} 23. Kh1 {[%clk 00:01:39]} {[%emt 00:00:17]} Rg5
{[%clk 00:03:26]} {[%emt 00:01:19]} 24. Qf1 {[%clk 00:00:32]} {[%emt 00:01:38]}
Bf4 {[%clk 00:02:41]} {[%emt 00:01:15]} 25. Nc5 {[%clk 00:00:44]} {[%emt
00:00:17]} Qf7 {[%clk 00:01:25]} {[%emt 00:01:46]} 26. Qh3+ {[%clk 00:00:43]}
{[%emt 00:00:31]} f5 {[%clk 00:01:53]} {[%emt 00:00:03]} 27. exf5 {[%clk
00:00:31]} {[%emt 00:00:42]} Qxf5 {[%clk 00:01:44]} {[%emt 00:00:39]} 28. Qxf5+
{[%clk 00:00:55]} {[%emt 00:00:06]} Rxf5 {[%clk 00:02:11]} {[%emt 00:00:02]} 29.
b6 {[%clk 00:00:32]} {[%emt 00:00:54]} cxb6 {[%clk 00:02:23]} {[%emt 00:00:18]}
30. axb6 {[%clk 00:01:00]} {[%emt 00:00:01]} a6 {[%clk 00:02:23]} {[%emt
00:00:31]} 31. Ne6 {[%clk 00:00:45]} {[%emt 00:00:45]} Re8 {[%clk 00:01:11]}
{[%emt 00:01:41]} 32. Nxf4 {[%clk 00:01:09]} {[%emt 00:00:06]} Rxe2 {[%clk
00:00:50]} {[%emt 00:00:51]} 33. Nxe2 {[%clk 00:01:34]} {[%emt 00:00:05]} Rxf3
{[%clk 00:01:08]} {[%emt 00:00:12]} 34. Ra4 {[%clk 00:01:39]} {[%emt 00:00:25]}
Rf2 {[%clk 00:00:40]} {[%emt 00:00:58]} 35. Rxc4+ {[%clk 00:02:00]} {[%emt
00:00:09]} Kd8 {[%clk 00:01:07]} {[%emt 00:00:03]} 36. Ng3 {[%clk 00:01:46]}
{[%emt 00:00:44]} 1-0

[Event "Schack-SM 2023: Veteran-SM 50+"]
[Site "Helsingborg Arena, Mellersta Stenbocksgatan 14, Helsingborg, Sweden"]
[Date "2023.07.09"]
[Round "9.5"]
[White "Johansson, Ingemar 1966"]
[Black "Nurmi, Tommy"]
[Result "0-1"]
[TimeControl "90 minutes for 40 moves + 30 minutes for the rest of games + 30 seconds per move from move one."]
[WhiteElo "1839"]
[BlackElo "2010"]

1. c4 {[%clk 01:30:55]} {[%emt 00:00:05]} f5 {[%clk 01:30:44]} {[%emt
00:00:16]} 2. Nf3 {[%clk 01:30:51]} {[%emt 00:00:34]} Nf6 {[%clk 01:30:51]}
{[%emt 00:00:23]} 3. g3 {[%clk 01:30:05]} {[%emt 00:01:16]} e6 {[%clk
01:30:53]} {[%emt 00:00:28]} 4. Bg2 {[%clk 01:29:40]} {[%emt 00:00:55]} d5
{[%clk 01:30:53]} {[%emt 00:00:30]} 5. O-O {[%clk 01:25:01]} {[%emt 00:05:09]}
c6 {[%clk 01:28:07]} {[%emt 00:03:16]} 6. d4 {[%clk 01:21:04]} {[%emt
00:04:27]} Bd6 {[%clk 01:27:39]} {[%emt 00:00:58]} 7. c5 {[%clk 01:17:03]}
{[%emt 00:04:31]} Bc7 {[%clk 01:25:37]} {[%emt 00:02:32]} 8. Bg5 {[%clk
01:06:56]} {[%emt 00:10:37]} Nbd7 {[%clk 01:23:04]} {[%emt 00:03:03]} 9. h4
{[%clk 00:54:44]} {[%emt 00:12:42]} e5 {[%clk 01:02:09]} {[%emt 00:21:26]} 10.
h5 {[%clk 00:51:13]} {[%emt 00:04:00]} h6 {[%clk 00:58:44]} {[%emt 00:03:54]}
11. Bh4 {[%clk 00:43:56]} {[%emt 00:07:47]} e4 {[%clk 00:42:41]} {[%emt
00:16:34]} 12. Ne1 {[%clk 00:36:37]} {[%emt 00:07:50]} O-O {[%clk 00:36:45]}
{[%emt 00:06:25]} 13. Bh3 {[%clk 00:35:37]} {[%emt 00:01:30]} Qe8 {[%clk
00:34:28]} {[%emt 00:02:48]} 14. Bxf6 {[%clk 00:27:32]} {[%emt 00:08:35]} Nxf6
{[%clk 00:32:21]} {[%emt 00:02:37]} 15. e3 {[%clk 00:26:59]} {[%emt 00:01:03]}
Qxh5 {[%clk 00:30:04]} {[%emt 00:02:46]} 16. Qxh5 {[%clk 00:27:07]} {[%emt
00:00:22]} Nxh5 {[%clk 00:30:28]} {[%emt 00:00:06]} 17. Nc3 {[%clk 00:26:49]}
{[%emt 00:00:49]} g5 {[%clk 00:30:02]} {[%emt 00:00:55]} 18. Ne2 {[%clk
00:26:50]} {[%emt 00:00:29]} f4 {[%clk 00:26:10]} {[%emt 00:04:22]} 19. Bxc8
{[%clk 00:24:24]} {[%emt 00:02:57]} Raxc8 {[%clk 00:26:16]} {[%emt 00:00:23]}
20. exf4 {[%clk 00:21:54]} {[%emt 00:03:00]} gxf4 {[%clk 00:26:24]} {[%emt
00:00:22]} 21. gxf4 {[%clk 00:21:52]} {[%emt 00:00:32]} Nxf4 {[%clk 00:25:35]}
{[%emt 00:01:19]} 22. Nxf4 {[%clk 00:21:15]} {[%emt 00:01:08]} Bxf4 {[%clk
00:24:14]} {[%emt 00:01:51]} 23. Kg2 {[%clk 00:19:02]} {[%emt 00:02:43]} Rc7
{[%clk 00:23:41]} {[%emt 00:01:02]} 24. Rh1 {[%clk 00:19:02]} {[%emt 00:00:30]}
Rg7+ {[%clk 00:23:28]} {[%emt 00:00:44]} 25. Kf1 {[%clk 00:18:52]} {[%emt
00:00:40]} Bg3 {[%clk 00:22:47]} {[%emt 00:01:10]} 0-1

[Event "Schack-SM 2023: Mastarklassen"]
[Site "Helsingborg Arena, Mellersta Stenbocksgatan 14, Helsingborg, Sweden"]
[Date "2023.07.09"]
[Round "9.1"]
[White "Sundin, Emanuel"]
[Black "Lundin, Jan"]
[Result "0-1"]
[TimeControl "90 minutes for 40 moves + 30 minutes for the rest of games + 30 seconds per move from move one."]
[BlackTitle "FM"]
[WhiteElo "2103"]
[BlackElo "2203"]

1. e4 {[%clk 01:30:50]} {[%emt 00:00:09]} e6 {[%clk 01:30:55]} {[%emt
00:00:05]} 2. d4 {[%clk 01:31:06]} {[%emt 00:00:14]} d5 {[%clk 01:31:20]}
{[%emt 00:00:04]} 3. Nd2 {[%clk 01:29:44]} {[%emt 00:01:52]} Nc6 {[%clk
01:31:44]} {[%emt 00:00:08]} 4. Ngf3 {[%clk 01:29:11]} {[%emt 00:01:03]} Nf6
{[%clk 01:32:07]} {[%emt 00:00:07]} 5. e5 {[%clk 01:29:32]} {[%emt 00:00:08]}
Nd7 {[%clk 01:32:30]} {[%emt 00:00:07]} 6. Nb3 {[%clk 01:27:22]} {[%emt
00:02:41]} a5 {[%clk 01:32:25]} {[%emt 00:00:35]} 7. a4 {[%clk 01:26:51]}
{[%emt 00:01:00]} Be7 {[%clk 01:28:11]} {[%emt 00:04:44]} 8. c3 {[%clk
01:23:22]} {[%emt 00:04:00]} b6 {[%clk 01:26:32]} {[%emt 00:02:08]} 9. h4
{[%clk 01:20:06]} {[%emt 00:03:46]} h6 {[%clk 01:19:34]} {[%emt 00:07:28]} 10.
Rh3 {[%clk 01:18:25]} {[%emt 00:02:11]} Ba6 {[%clk 01:16:49]} {[%emt 00:03:15]}
11. Bxa6 {[%clk 01:12:30]} {[%emt 00:06:25]} Rxa6 {[%clk 01:17:07]} {[%emt
00:00:12]} 12. h5 {[%clk 01:12:44]} {[%emt 00:00:16]} Ra7 {[%clk 01:11:17]}
{[%emt 00:06:19]} 13. Rg3 {[%clk 01:11:00]} {[%emt 00:02:16]} Bf8 {[%clk
00:58:18]} {[%emt 00:13:28]} 14. Rg4 {[%clk 01:03:59]} {[%emt 00:07:31]} Ne7
{[%clk 00:51:19]} {[%emt 00:07:29]} 15. Nh4 {[%clk 00:59:32]} {[%emt 00:04:57]}
c5 {[%clk 00:47:51]} {[%emt 00:03:58]} 16. Nd2 {[%clk 00:55:11]} {[%emt
00:04:51]} Nc6 {[%clk 00:44:53]} {[%emt 00:03:28]} 17. Nb1 {[%clk 00:53:43]}
{[%emt 00:01:58]} Rc7 {[%clk 00:33:21]} {[%emt 00:12:02]} 18. Kf1 {[%clk
00:46:47]} {[%emt 00:07:27]} Qc8 {[%clk 00:20:57]} {[%emt 00:12:54]} 19. Be3
{[%clk 00:36:21]} {[%emt 00:10:55]} Be7 {[%clk 00:16:53]} {[%emt 00:04:34]} 20.
Nf3 {[%clk 00:33:20]} {[%emt 00:03:31]} Kf8 {[%clk 00:17:03]} {[%emt 00:00:21]}
21. Kg1 {[%clk 00:32:30]} {[%emt 00:01:19]} cxd4 {[%clk 00:13:02]} {[%emt
00:04:32]} 22. cxd4 {[%clk 00:30:16]} {[%emt 00:02:43]} Bb4 {[%clk 00:13:19]}
{[%emt 00:00:13]} 23. Nc3 {[%clk 00:26:18]} {[%emt 00:04:27]} Bxc3 {[%clk
00:13:06]} {[%emt 00:00:44]} 24. bxc3 {[%clk 00:26:47]} {[%emt 00:00:01]} Ne7
{[%clk 00:12:53]} {[%emt 00:00:43]} 25. Bd2 {[%clk 00:26:37]} {[%emt 00:00:40]}
Nf5 {[%clk 00:10:30]} {[%emt 00:02:53]} 26. Rf4 {[%clk 00:22:21]} {[%emt
00:04:46]} Rc4 {[%clk 00:06:18]} {[%emt 00:04:42]} 27. g4 {[%clk 00:21:21]}
{[%emt 00:01:30]} Ne7 {[%clk 00:06:36]} {[%emt 00:00:13]} 28. Nh4 {[%clk
00:21:01]} {[%emt 00:00:48]} Ke8 {[%clk 00:06:09]} {[%emt 00:00:57]} 29. Qf3
{[%clk 00:18:43]} {[%emt 00:02:49]} Rf8 {[%clk 00:06:00]} {[%emt 00:00:39]} 30.
Ng2 {[%clk 00:17:36]} {[%emt 00:01:37]} g5 {[%clk 00:04:19]} {[%emt 00:02:11]}
31. hxg6 {[%clk 00:14:40]} {[%emt 00:03:26]} Nxg6 {[%clk 00:04:44]} {[%emt
00:00:05]} 32. Ne3 {[%clk 00:13:31]} {[%emt 00:01:39]} Ndxe5 {[%clk 00:03:27]}
{[%emt 00:01:47]} 33. Qd1 {[%clk 00:10:22]} {[%emt 00:03:39]} Nxf4 {[%clk
00:01:43]} {[%emt 00:02:14]} 34. Nxc4 {[%clk 00:08:55]} {[%emt 00:01:57]} Nh3+
{[%clk 00:01:26]} {[%emt 00:00:47]} 35. Kg2 {[%clk 00:08:23]} {[%emt 00:01:02]}
Qxc4 {[%clk 00:01:00]} {[%emt 00:00:56]} 36. Kxh3 {[%clk 00:03:48]} {[%emt
00:05:05]} Nd3 {[%clk 00:00:53]} {[%emt 00:00:37]} 37. Kg3 {[%clk 00:03:07]}
{[%emt 00:01:11]} h5 {[%clk 00:00:47]} {[%emt 00:00:36]} 38. f4 {[%clk
00:01:29]} {[%emt 00:02:09]} hxg4 {[%clk 00:00:52]} {[%emt 00:00:25]} 39. Rb1
{[%clk 00:01:20]} {[%emt 00:00:39]} Rh8 {[%clk 00:00:41]} {[%emt 00:00:41]} 40.
Qf1 {[%clk 00:00:38]} {[%emt 00:01:12]} f5 {[%clk 00:00:41]} {[%emt 00:00:30]}
41. Rxb6 {[%clk 00:27:55]} {[%emt 00:03:14]} Kf7 {[%clk 00:17:22]} {[%emt
00:13:47]} 42. Kg2 {[%clk 00:24:06]} {[%emt 00:04:18]} Rh3 {[%clk 00:15:19]}
{[%emt 00:02:33]} 43. Qb1 {[%clk 00:21:54]} {[%emt 00:02:43]} Nc5 {[%clk
00:08:48]} {[%emt 00:07:01]} 44. Qe1 {[%clk 00:15:31]} {[%emt 00:06:53]} Qd3
{[%clk 00:07:59]} {[%emt 00:01:18]} 0-1

[Event "Schack-SM 2023: Mastarklassen"]
[Site "Helsingborg Arena, Mellersta Stenbocksgatan 14, Helsingborg, Sweden"]
[Date "2023.07.09"]
[Round "9.2"]
[White "Cederstam, Carl"]
[Black "Nilsson, Patrik 1978"]
[Result "1-0"]
[TimeControl "90 minutes for 40 moves + 30 minutes for the rest of games + 30 seconds per move from move one."]
[WhiteTitle "FM"]
[WhiteElo "2196"]
[BlackElo "2167"]

1. c4 {[%clk 01:23:02]} {[%emt 00:07:45]} f5 {[%clk 01:30:56]} {[%emt
00:00:16]} 2. g3 {[%clk 01:23:24]} {[%emt 00:00:08]} Nf6 {[%clk 01:30:51]}
{[%emt 00:00:35]} 3. Bg2 {[%clk 01:23:46]} {[%emt 00:00:08]} g6 {[%clk
01:31:04]} {[%emt 00:00:17]} 4. Nf3 {[%clk 01:22:51]} {[%emt 00:01:26]} Bg7
{[%clk 01:31:25]} {[%emt 00:00:08]} 5. O-O {[%clk 01:23:00]} {[%emt 00:00:21]}
O-O {[%clk 01:31:45]} {[%emt 00:00:10]} 6. Nc3 {[%clk 01:23:21]} {[%emt
00:00:09]} d6 {[%clk 01:31:49]} {[%emt 00:00:26]} 7. d4 {[%clk 01:23:24]}
{[%emt 00:00:28]} Qe8 {[%clk 01:32:04]} {[%emt 00:00:14]} 8. Re1 {[%clk
01:23:47]} {[%emt 00:00:07]} Qf7 {[%clk 01:32:04]} {[%emt 00:00:29]} 9. e4
{[%clk 01:24:09]} {[%emt 00:00:10]} fxe4 {[%clk 01:31:33]} {[%emt 00:01:00]} 10.
Nxe4 {[%clk 01:24:36]} {[%emt 00:00:03]} Nc6 {[%clk 01:25:12]} {[%emt
00:06:49]} 11. Neg5 {[%clk 01:24:45]} {[%emt 00:00:23]} Qxc4 {[%clk 01:18:42]}
{[%emt 00:07:00]} 12. b3 {[%clk 01:25:12]} {[%emt 00:00:04]} Qb4 {[%clk
01:14:15]} {[%emt 00:04:56]} 13. a3 {[%clk 01:23:16]} {[%emt 00:02:25]} Qb6
{[%clk 01:07:44]} {[%emt 00:07:02]} 14. h3 {[%clk 01:16:46]} {[%emt 00:07:01]}
d5 {[%clk 00:54:30]} {[%emt 00:13:43]} 15. b4 {[%clk 01:11:23]} {[%emt
00:05:54]} a5 {[%clk 00:42:22]} {[%emt 00:12:38]} 16. b5 {[%clk 01:07:27]}
{[%emt 00:04:26]} Nd8 {[%clk 00:39:24]} {[%emt 00:03:27]} 17. a4 {[%clk
00:59:38]} {[%emt 00:08:19]} h6 {[%clk 00:32:17]} {[%emt 00:07:37]} 18. Ba3
{[%clk 00:56:05]} {[%emt 00:04:04]} Nd7 {[%clk 00:30:53]} {[%emt 00:01:54]} 19.
Bxe7 {[%clk 00:38:32]} {[%emt 00:18:02]} hxg5 {[%clk 00:30:31]} {[%emt
00:00:52]} 20. Nxg5 {[%clk 00:32:18]} {[%emt 00:06:45]} c6 {[%clk 00:20:29]}
{[%emt 00:10:32]} 21. bxc6 {[%clk 00:17:47]} {[%emt 00:15:01]} bxc6 {[%clk
00:20:14]} {[%emt 00:00:44]} 22. Qc2 {[%clk 00:17:34]} {[%emt 00:00:41]} Rf5
{[%clk 00:15:08]} {[%emt 00:05:38]} 23. Rab1 {[%clk 00:17:31]} {[%emt
00:00:33]} Qc7 {[%clk 00:10:17]} {[%emt 00:05:22]} 24. Bxd8 {[%clk 00:07:12]}
{[%emt 00:10:49]} Qxd8 {[%clk 00:10:29]} {[%emt 00:00:18]} 25. Ne6 {[%clk
00:02:58]} {[%emt 00:04:43]} Qf6 {[%clk 00:10:07]} {[%emt 00:00:52]} 26. g4
{[%clk 00:03:12]} {[%emt 00:00:16]} Rf4 {[%clk 00:02:12]} {[%emt 00:08:25]} 27.
Nxf4 {[%clk 00:02:13]} {[%emt 00:01:30]} Qxf4 {[%clk 00:02:30]} {[%emt
00:00:12]} 28. Qxc6 {[%clk 00:01:03]} {[%emt 00:01:40]} Rb8 {[%clk 00:01:08]}
{[%emt 00:01:51]} 29. Rxb8 {[%clk 00:00:43]} {[%emt 00:00:51]} Qxb8 {[%clk
00:01:22]} {[%emt 00:00:16]} 30. Re8+ {[%clk 00:00:37]} {[%emt 00:00:35]} Nf8
{[%clk 00:01:16]} {[%emt 00:00:37]} 31. Bxd5+ {[%clk 00:00:56]} {[%emt
00:00:11]} Kh7 {[%clk 00:01:29]} {[%emt 00:00:16]} 32. Rxc8 {[%clk 00:01:01]}
{[%emt 00:00:26]} Qf4 {[%clk 00:01:02]} {[%emt 00:00:56]} 33. Rc7 {[%clk
00:00:56]} {[%emt 00:00:35]} Kh6 {[%clk 00:01:04]} {[%emt 00:00:29]} 34. Qc1
{[%clk 00:01:10]} {[%emt 00:00:15]} 1-0